[Event "*** Titled Tuesday Blitz"]
[Site "Chess.com"]
[Date "2020.05.26"]
[Round "4"]
[White "sotochess"]
[Black "praveenb2002"]
[Result "0-1"]
[WhiteElo "2246"]
[BlackElo "2761"]
[TimeControl "180+1"]
[EndTime "10:40:33 PDT"]
[Termination "praveenb2002 won by checkmate"]

1. e4 {[%clk 0:03:00.4]} 1... c6 {[%clk 0:02:56.3]} 2. Nf3 {[%clk 0:02:52.9]}
2... d5 {[%clk 0:02:57.2]} 3. exd5 {[%clk 0:02:53]} 3... cxd5 {[%clk 0:02:57.2]}
4. Ne5 {[%clk 0:02:53]} 4... Nc6 {[%clk 0:02:47.9]} 5. Bb5 {[%clk 0:02:52.4]}
5... Bd7 {[%clk 0:02:48.1]} 6. Bxc6 {[%clk 0:02:52.2]} 6... Bxc6 {[%clk
0:02:48]} 7. d4 {[%clk 0:02:52.7]} 7... Nf6 {[%clk 0:02:44.1]} 8. O-O {[%clk
0:02:52.3]} 8... e6 {[%clk 0:02:44.5]} 9. Re1 {[%clk 0:02:52.4]} 9... Be7 {[%clk
0:02:38.5]} 10. Bf4 {[%clk 0:02:48.5]} 10... O-O {[%clk 0:02:32.7]} 11. c3
{[%clk 0:02:42.6]} 11... Qb6 {[%clk 0:02:25.8]} 12. Qb3 {[%clk 0:02:41.5]} 12...
Nd7 {[%clk 0:02:12.8]} 13. Nd2 {[%clk 0:02:35.6]} 13... Rfc8 {[%clk 0:02:02.4]}
14. Ndf3 {[%clk 0:02:34.6]} 14... Nxe5 {[%clk 0:01:52]} 15. Nxe5 {[%clk
0:02:31.8]} 15... Qxb3 {[%clk 0:01:52.1]} 16. axb3 {[%clk 0:02:31.3]} 16... Be8
{[%clk 0:01:52.3]} 17. f3 {[%clk 0:02:23.4]} 17... a5 {[%clk 0:01:51.9]} 18. Kf2
{[%clk 0:02:19.5]} 18... Ra6 {[%clk 0:01:50.6]} 19. Re2 {[%clk 0:02:15.2]} 19...
Bb5 {[%clk 0:01:48.8]} 20. Rd2 {[%clk 0:02:14.1]} 20... Rca8 {[%clk 0:01:42.7]}
21. g4 {[%clk 0:02:09.7]} 21... a4 {[%clk 0:01:36.9]} 22. bxa4 {[%clk
0:02:04.1]} 22... Rxa4 {[%clk 0:01:37.8]} 23. Rxa4 {[%clk 0:02:03.4]} 23... Rxa4
{[%clk 0:01:38.7]} 24. Kg3 {[%clk 0:02:02.8]} 24... Ra2 {[%clk 0:01:34.4]} 25.
g5 {[%clk 0:02:00.5]} 25... f6 {[%clk 0:01:29.8]} 26. gxf6 {[%clk 0:01:59.1]}
26... gxf6 {[%clk 0:01:30.7]} 27. Ng4 {[%clk 0:01:58.9]} 27... Kf7 {[%clk
0:01:30.6]} 28. h4 {[%clk 0:01:58.1]} 28... Ra1 {[%clk 0:01:26.8]} 29. Rg2
{[%clk 0:01:51.3]} 29... Bd3 {[%clk 0:01:16.2]} 30. h5 {[%clk 0:01:49.5]} 30...
Rh1 {[%clk 0:01:12.1]} 31. Rh2 {[%clk 0:01:30.6]} 31... Rg1+ {[%clk 0:01:08.9]}
32. Kf2 {[%clk 0:01:27.4]} 32... Rb1 {[%clk 0:01:07.5]} 33. Ke3 {[%clk
0:01:27.1]} 33... Bc4 {[%clk 0:01:06.6]} 34. Nh6+ {[%clk 0:01:26.2]} 34... Ke8
{[%clk 0:01:04.8]} 35. Rg2 {[%clk 0:01:25.8]} 35... Re1+ {[%clk 0:01:01.2]} 36.
Kd2 {[%clk 0:01:25.1]} 36... Rf1 {[%clk 0:01:01.2]} 37. Ke3 {[%clk 0:01:24.4]}
37... e5 {[%clk 0:00:53]} 38. dxe5 {[%clk 0:01:18]} 38... Bc5+ {[%clk
0:00:52.1]} 39. Kd2 {[%clk 0:01:16.5]} 39... Rxf3 {[%clk 0:00:52.1]} 40. Rg8+
{[%clk 0:01:08.5]} 40... Kd7 {[%clk 0:00:51]} 41. Bg3 {[%clk 0:00:43.1]} 41...
Be3+ {[%clk 0:00:50]} 42. Kc2 {[%clk 0:00:40.7]} 42... Bxh6 {[%clk 0:00:49.6]}
43. exf6 {[%clk 0:00:40.4]} 43... Rxf6 {[%clk 0:00:47.6]} 44. b3 {[%clk
0:00:39]} 44... Be2 {[%clk 0:00:40]} 45. Rb8 {[%clk 0:00:36.2]} 45... Kc6 {[%clk
0:00:35.3]} 46. Rc8+ {[%clk 0:00:35.9]} 46... Kb6 {[%clk 0:00:34.1]} 47. Be5
{[%clk 0:00:35.8]} 47... Re6 {[%clk 0:00:25.4]} 48. Bd4+ {[%clk 0:00:35.8]}
48... Ka6 {[%clk 0:00:24.6]} 49. Rc5 {[%clk 0:00:31.4]} 49... Bxh5 {[%clk
0:00:19.3]} 50. Rxd5 {[%clk 0:00:31.1]} 50... Bg6+ {[%clk 0:00:20]} 51. Kb2
{[%clk 0:00:31]} 51... Re2+ {[%clk 0:00:20.6]} 52. Ka3 {[%clk 0:00:30.9]} 52...
Re6 {[%clk 0:00:19.5]} 53. b4 {[%clk 0:00:30.7]} 53... b6 {[%clk 0:00:19.8]} 54.
b5+ {[%clk 0:00:30.1]} 54... Kb7 {[%clk 0:00:19.9]} 55. Rd7+ {[%clk 0:00:29.8]}
55... Kc8 {[%clk 0:00:20.4]} 56. Ra7 {[%clk 0:00:29.4]} 56... Bf8+ {[%clk
0:00:19.5]} 57. Ka4 {[%clk 0:00:29.2]} 57... Bc5 {[%clk 0:00:19.8]} 58. Bxc5
{[%clk 0:00:28.3]} 58... bxc5 {[%clk 0:00:17.6]} 59. Ka5 {[%clk 0:00:28.5]}
59... Be4 {[%clk 0:00:17.2]} 60. b6 {[%clk 0:00:28.2]} 60... Bb7 {[%clk
0:00:17.3]} 61. Kb5 {[%clk 0:00:28.3]} 61... Re5 {[%clk 0:00:16.1]} 62. c4
{[%clk 0:00:28.3]} 62... h5 {[%clk 0:00:14]} 63. Ra3 {[%clk 0:00:27.8]} 63... h4
{[%clk 0:00:13.7]} 64. Rh3 {[%clk 0:00:27.3]} 64... Rh5 {[%clk 0:00:13.8]} 65.
Ka5 {[%clk 0:00:27.2]} 65... Rh8 {[%clk 0:00:13.4]} 66. Kb5 {[%clk 0:00:26.9]}
66... Bg2 {[%clk 0:00:12.7]} 67. Rh2 {[%clk 0:00:26.1]} 67... h3 {[%clk
0:00:13.2]} 68. Kxc5 {[%clk 0:00:26.1]} 68... Kb7 {[%clk 0:00:11.8]} 69. Kb5
{[%clk 0:00:26]} 69... Rh5+ {[%clk 0:00:12.4]} 70. c5 {[%clk 0:00:26]} 70... Rg5
{[%clk 0:00:12.9]} 71. Kb4 {[%clk 0:00:25.9]} 71... Kc6 {[%clk 0:00:13.3]} 72.
Ka5 {[%clk 0:00:23.7]} 72... Rxc5+ {[%clk 0:00:13.2]} 73. Ka6 {[%clk 0:00:23.9]}
73... Rb5 {[%clk 0:00:12.7]} 74. b7 {[%clk 0:00:23.4]} 74... Rb6+ {[%clk
0:00:13.1]} 75. Ka5 {[%clk 0:00:22.5]} 75... Rxb7 {[%clk 0:00:13.7]} 76. Ka4
{[%clk 0:00:19.4]} 76... Kc5 {[%clk 0:00:13.9]} 77. Ka3 {[%clk 0:00:19.3]} 77...
Kc4 {[%clk 0:00:14.1]} 78. Ka2 {[%clk 0:00:19.2]} 78... Kc3 {[%clk 0:00:14.4]}
79. Ka3 {[%clk 0:00:19.4]} 79... Ra7# {[%clk 0:00:13]} 0-1

[Event "*** Titled Tuesday Blitz"]
[Site "Chess.com"]
[Date "2020.05.26"]
[Round "4"]
[White "PauloCesarCosta_sad"]
[Black "MichailovM"]
[Result "0-1"]
[WhiteElo "2181"]
[BlackElo "2403"]
[TimeControl "180+1"]
[EndTime "10:40:48 PDT"]
[Termination "MichailovM won by checkmate"]

1. Nf3 {[%clk 0:03:00.9]} 1... Nf6 {[%clk 0:02:59.4]} 2. c3 {[%clk 0:02:58.9]}
2... g6 {[%clk 0:02:59.2]} 3. d4 {[%clk 0:02:57.5]} 3... Bg7 {[%clk 0:03:00.1]}
4. Bg5 {[%clk 0:02:57.8]} 4... d6 {[%clk 0:03:01]} 5. Nbd2 {[%clk 0:02:56.7]}
5... O-O {[%clk 0:03:01.5]} 6. e3 {[%clk 0:02:54.4]} 6... Nbd7 {[%clk
0:02:59.5]} 7. Bd3 {[%clk 0:02:52.4]} 7... b6 {[%clk 0:02:54.3]} 8. O-O {[%clk
0:02:52.2]} 8... Bb7 {[%clk 0:02:54.5]} 9. Qc2 {[%clk 0:02:50.4]} 9... c5 {[%clk
0:02:53]} 10. Ne4 {[%clk 0:02:45.5]} 10... Rc8 {[%clk 0:02:52]} 11. Nxf6+ {[%clk
0:02:45]} 11... Nxf6 {[%clk 0:02:52.9]} 12. Bxf6 {[%clk 0:02:43.9]} 12... Bxf6
{[%clk 0:02:53.8]} 13. Be4 {[%clk 0:02:44.2]} 13... d5 {[%clk 0:02:52.1]} 14.
Bd3 {[%clk 0:02:41.3]} 14... Qd6 {[%clk 0:02:52.3]} 15. Rfe1 {[%clk 0:02:30.1]}
15... Bg7 {[%clk 0:02:45.5]} 16. Rad1 {[%clk 0:02:29.7]} 16... Rfd8 {[%clk
0:02:35.7]} 17. Qe2 {[%clk 0:02:29.5]} 17... e5 {[%clk 0:02:31.1]} 18. dxe5
{[%clk 0:02:25.4]} 18... Bxe5 {[%clk 0:02:32]} 19. Nxe5 {[%clk 0:02:25.4]} 19...
Qxe5 {[%clk 0:02:32.9]} 20. Ba6 {[%clk 0:02:23.6]} 20... Bxa6 {[%clk 0:02:31.1]}
21. Qxa6 {[%clk 0:02:22.9]} 21... Qe7 {[%clk 0:02:20.4]} 22. Rd2 {[%clk
0:02:17.7]} 22... Rc7 {[%clk 0:02:19]} 23. Red1 {[%clk 0:02:17.4]} 23... Rcd7
{[%clk 0:02:19.2]} 24. Qe2 {[%clk 0:01:56.4]} 24... Kg7 {[%clk 0:02:13.7]} 25.
Qf3 {[%clk 0:01:56.3]} 25... Qe5 {[%clk 0:02:11.4]} 26. Qg3 {[%clk 0:01:51.9]}
26... f6 {[%clk 0:01:59.7]} 27. Kf1 {[%clk 0:01:48.5]} 27... Kf7 {[%clk
0:01:59.9]} 28. Qh3 {[%clk 0:01:38.9]} 28... h5 {[%clk 0:01:55.2]} 29. Qg3
{[%clk 0:01:38.6]} 29... Ke6 {[%clk 0:01:40.4]} 30. Qh3+ {[%clk 0:01:38.1]}
30... Qf5 {[%clk 0:01:40.4]} 31. Qxf5+ {[%clk 0:01:36]} 31... Kxf5 {[%clk
0:01:41.3]} 32. Ke2 {[%clk 0:01:34.2]} 32... Ke5 {[%clk 0:01:40.4]} 33. Kf3
{[%clk 0:01:30.7]} 33... a5 {[%clk 0:01:35.9]} 34. h4 {[%clk 0:01:30.5]} 34...
a4 {[%clk 0:01:35.7]} 35. a3 {[%clk 0:01:29.7]} 35... Rg8 {[%clk 0:01:10.5]} 36.
c4 {[%clk 0:01:17.4]} 36... d4 {[%clk 0:01:10.6]} 37. exd4+ {[%clk 0:01:16.8]}
37... Rxd4 {[%clk 0:01:00.1]} 38. Re1+ {[%clk 0:00:56]} 38... Kf5 {[%clk
0:00:59.3]} 39. Rxd4 {[%clk 0:00:47.8]} 39... cxd4 {[%clk 0:01:00.2]} 40. Rd1
{[%clk 0:00:47.9]} 40... Rd8 {[%clk 0:01:00.1]} 41. Ke2 {[%clk 0:00:41.2]} 41...
g5 {[%clk 0:00:48.7]} 42. hxg5 {[%clk 0:00:40.3]} 42... fxg5 {[%clk 0:00:49.6]}
43. Kd3 {[%clk 0:00:40.6]} 43... h4 {[%clk 0:00:48.9]} 44. Re1 {[%clk
0:00:37.1]} 44... g4 {[%clk 0:00:44.6]} 45. Re4 {[%clk 0:00:33.7]} 45... Rd6
{[%clk 0:00:38.4]} 46. Re8 {[%clk 0:00:25.6]} 46... h3 {[%clk 0:00:37.2]} 47.
gxh3 {[%clk 0:00:24.7]} 47... gxh3 {[%clk 0:00:38.1]} 48. Rh8 {[%clk 0:00:22.8]}
48... Kg4 {[%clk 0:00:38.3]} 49. Rg8+ {[%clk 0:00:20.4]} 49... Kf4 {[%clk
0:00:36.6]} 50. Rh8 {[%clk 0:00:20]} 50... Kg4 {[%clk 0:00:35.4]} 51. Rg8+
{[%clk 0:00:20.1]} 51... Kf3 {[%clk 0:00:34]} 52. Rh8 {[%clk 0:00:15.9]} 52...
Kg2 {[%clk 0:00:33]} 53. f4 {[%clk 0:00:08.8]} 53... h2 {[%clk 0:00:32.3]} 54.
Rg8+ {[%clk 0:00:08.2]} 54... Kf3 {[%clk 0:00:26.9]} 55. Rh8 {[%clk 0:00:08.3]}
55... Kxf4 {[%clk 0:00:23]} 56. Rxh2 {[%clk 0:00:08]} 56... Kg3 {[%clk
0:00:13.4]} 57. Rh5 {[%clk 0:00:07.5]} 57... Kf3 {[%clk 0:00:13]} 58. Rd5 {[%clk
0:00:06.5]} 58... Re6 {[%clk 0:00:11.3]} 59. Rxd4 {[%clk 0:00:06.3]} 59... Re2
{[%clk 0:00:11.2]} 60. Kc3 {[%clk 0:00:02.6]} 60... Ke3 {[%clk 0:00:08.9]} 61.
Rd3+ {[%clk 0:00:03]} 61... Ke4 {[%clk 0:00:08.5]} 62. Rd2 {[%clk 0:00:03.4]}
62... Re3+ {[%clk 0:00:08.4]} 63. Kc2 {[%clk 0:00:02.7]} 63... Rb3 {[%clk
0:00:08.4]} 64. Rd8 {[%clk 0:00:02.9]} 64... Ke5 {[%clk 0:00:07.7]} 65. Re8+
{[%clk 0:00:03.8]} 65... Kd6 {[%clk 0:00:07.8]} 66. Rd8+ {[%clk 0:00:04]} 66...
Kc5 {[%clk 0:00:08.2]} 67. Rd3 {[%clk 0:00:04.7]} 67... Kxc4 {[%clk 0:00:03.3]}
68. Rd8 {[%clk 0:00:04.6]} 68... Kb5 {[%clk 0:00:03.4]} 69. Rc8 {[%clk
0:00:04.5]} 69... Rh3 {[%clk 0:00:03.3]} 70. Rh8 {[%clk 0:00:05.4]} 70... Rxh8
{[%clk 0:00:03.1]} 71. b4 {[%clk 0:00:04]} 71... Kc4 {[%clk 0:00:02.7]} 72. Kd2
{[%clk 0:00:03.9]} 72... Rh2+ {[%clk 0:00:02.7]} 73. Ke3 {[%clk 0:00:04.8]}
73... Ra2 {[%clk 0:00:02.8]} 74. Kf3 {[%clk 0:00:05.7]} 74... Rxa3+ {[%clk
0:00:03.1]} 75. Ke2 {[%clk 0:00:04.7]} 75... Rb3 {[%clk 0:00:04]} 76. Kf2 {[%clk
0:00:05.6]} 76... a3 {[%clk 0:00:04.9]} 77. Ke2 {[%clk 0:00:06]} 77... a2 {[%clk
0:00:05.8]} 78. Kd2 {[%clk 0:00:06.9]} 78... a1=Q {[%clk 0:00:06.6]} 79. Kc2
{[%clk 0:00:07.8]} 79... Rb2# {[%clk 0:00:06.8]} 0-1

[Event "*** Titled Tuesday Blitz"]
[Site "Chess.com"]
[Date "2020.05.26"]
[Round "4"]
[White "Angry_Twin"]
[Black "GMStefanova"]
[Result "0-1"]
[WhiteElo "2827"]
[BlackElo "2640"]
[TimeControl "180+1"]
[EndTime "10:40:49 PDT"]
[Termination "GMStefanova won by resignation"]

1. e4 {[%clk 0:03:00.9]} 1... c6 {[%clk 0:02:59.8]} 2. d4 {[%clk 0:03:00.9]}
2... d5 {[%clk 0:03:00.1]} 3. e5 {[%clk 0:03:01.6]} 3... c5 {[%clk 0:03:00.3]}
4. dxc5 {[%clk 0:03:02.5]} 4... e6 {[%clk 0:02:57.3]} 5. a3 {[%clk 0:03:02.5]}
5... Bxc5 {[%clk 0:02:56]} 6. Nf3 {[%clk 0:03:02.6]} 6... Ne7 {[%clk 0:02:51.7]}
7. Bd3 {[%clk 0:03:01.5]} 7... Ng6 {[%clk 0:02:48.9]} 8. O-O {[%clk 0:03:01.6]}
8... O-O {[%clk 0:02:47.5]} 9. b4 {[%clk 0:03:01.2]} 9... Bb6 {[%clk 0:02:35.6]}
10. Bb2 {[%clk 0:02:59.4]} 10... a5 {[%clk 0:02:29.1]} 11. Re1 {[%clk
0:02:48.5]} 11... axb4 {[%clk 0:02:20.7]} 12. axb4 {[%clk 0:02:49.4]} 12... Rxa1
{[%clk 0:02:20.4]} 13. Bxa1 {[%clk 0:02:50.3]} 13... Nc6 {[%clk 0:02:14.8]} 14.
b5 {[%clk 0:02:49.6]} 14... Nce7 {[%clk 0:02:11.9]} 15. Qd2 {[%clk 0:02:41.6]}
15... Qc7 {[%clk 0:02:07.9]} 16. Bc3 {[%clk 0:02:37.5]} 16... Bd7 {[%clk
0:02:01.3]} 17. Bb4 {[%clk 0:02:34]} 17... Ra8 {[%clk 0:01:54.6]} 18. Bd6 {[%clk
0:02:32.7]} 18... Qd8 {[%clk 0:01:51.9]} 19. h3 {[%clk 0:02:13.6]} 19... Ba5
{[%clk 0:01:49.4]} 20. c3 {[%clk 0:02:06.2]} 20... Nc8 {[%clk 0:01:38]} 21. Ba3
{[%clk 0:02:04.2]} 21... Nb6 {[%clk 0:01:36.4]} 22. Nd4 {[%clk 0:02:00.8]} 22...
Nc4 {[%clk 0:01:33]} 23. Bxc4 {[%clk 0:01:59.7]} 23... dxc4 {[%clk 0:01:33.1]}
24. Bd6 {[%clk 0:01:53.5]} 24... Bc7 {[%clk 0:01:24.1]} 25. Bxc7 {[%clk
0:01:32.8]} 25... Qxc7 {[%clk 0:01:23.7]} 26. Qe3 {[%clk 0:01:33.4]} 26... Qc5
{[%clk 0:01:18.3]} 27. Nd2 {[%clk 0:01:30.1]} 27... Bxb5 {[%clk 0:01:16.4]} 28.
g3 {[%clk 0:01:05.7]} 28... Bc6 {[%clk 0:01:09.8]} 29. h4 {[%clk 0:00:56.6]}
29... h6 {[%clk 0:01:08]} 30. Nxc6 {[%clk 0:00:47.9]} 30... Qxc6 {[%clk
0:01:05.9]} 31. Qd4 {[%clk 0:00:47.8]} 31... b5 {[%clk 0:01:04.3]} 32. Ne4
{[%clk 0:00:47.8]} 32... Ne7 {[%clk 0:01:02.1]} 33. Nd6 {[%clk 0:00:47.5]} 33...
Nf5 {[%clk 0:00:58.5]} 34. Nxf5 {[%clk 0:00:47.4]} 34... exf5 {[%clk 0:00:58.6]}
35. Qf4 {[%clk 0:00:41]} 35... Qe6 {[%clk 0:00:55.5]} 36. Rb1 {[%clk 0:00:40]}
36... Rb8 {[%clk 0:00:53.6]} 37. Qd4 {[%clk 0:00:40.2]} 37... h5 {[%clk
0:00:50.8]} 38. f4 {[%clk 0:00:40.4]} 38... g6 {[%clk 0:00:50.4]} 39. Kf2 {[%clk
0:00:38]} 39... Qc6 {[%clk 0:00:47.1]} 40. Rd1 {[%clk 0:00:36.7]} 40... b4
{[%clk 0:00:41.5]} 41. cxb4 {[%clk 0:00:36.1]} 41... Rxb4 {[%clk 0:00:37.5]} 42.
Rc1 {[%clk 0:00:32.9]} 42... Kh7 {[%clk 0:00:30.8]} 43. e6 {[%clk 0:00:20.5]}
43... Qxe6 {[%clk 0:00:26.8]} 44. Re1 {[%clk 0:00:13.2]} 44... Qb6 {[%clk
0:00:25.1]} 45. Qxb6 {[%clk 0:00:13.7]} 45... Rxb6 {[%clk 0:00:25.2]} 46. Re7
{[%clk 0:00:14.6]} 46... Kg7 {[%clk 0:00:24.4]} 47. Rc7 {[%clk 0:00:15.2]} 47...
Rb2+ {[%clk 0:00:24.3]} 48. Kf3 {[%clk 0:00:13.8]} 48... Rc2 {[%clk 0:00:23]}
49. Ke3 {[%clk 0:00:13.3]} 49... Kf6 {[%clk 0:00:22.3]} 50. Kf3 {[%clk
0:00:13.4]} 50... Ke6 {[%clk 0:00:21.5]} 51. Ke3 {[%clk 0:00:13.2]} 51... Rc3+
{[%clk 0:00:20.9]} 52. Kf2 {[%clk 0:00:13.4]} 52... Rc1 {[%clk 0:00:20.9]} 53.
Ke2 {[%clk 0:00:12.6]} 53... c3 {[%clk 0:00:21]} 54. Kf2 {[%clk 0:00:07]} 54...
Rc2+ {[%clk 0:00:17.7]} 55. Kf3 {[%clk 0:00:07.1]} 55... Rc1 {[%clk 0:00:17.8]}
56. Kf2 {[%clk 0:00:07.4]} 56... Kd5 {[%clk 0:00:15.7]} 57. Kg2 {[%clk
0:00:05.7]} 57... Kd4 {[%clk 0:00:15.3]} 58. Rxf7 {[%clk 0:00:05]} 58... Ra1
{[%clk 0:00:14]} 59. Rd7+ {[%clk 0:00:05.1]} 59... Ke3 {[%clk 0:00:13.3]} 60.
Re7+ {[%clk 0:00:05.3]} 60... Kd2 {[%clk 0:00:13.3]} 61. Rd7+ {[%clk 0:00:05.3]}
61... Kc1 {[%clk 0:00:12.9]} 62. Kf2 {[%clk 0:00:05.8]} 62... c2 {[%clk
0:00:12.4]} 63. Rc7 {[%clk 0:00:01.9]} 63... Ra6 {[%clk 0:00:12]} 64. Ke2 {[%clk
0:00:01.6]} 64... Re6+ {[%clk 0:00:10.9]} 65. Kf2 {[%clk 0:00:01.7]} 65... Rd6
{[%clk 0:00:10.1]} 66. Ke2 {[%clk 0:00:01.8]} 66... Rd4 {[%clk 0:00:09.4]} 67.
Ke3 {[%clk 0:00:02.1]} 67... Rb4 {[%clk 0:00:08.6]} 68. Kd3 {[%clk 0:00:02.3]}
68... Rb3+ {[%clk 0:00:08.8]} 69. Ke2 {[%clk 0:00:02.5]} 69... Kb2 {[%clk
0:00:08.6]} 70. Rc6 {[%clk 0:00:03.4]} 70... Rc3 {[%clk 0:00:07.9]} 71. Rb6+
{[%clk 0:00:02.4]} 71... Ka3 {[%clk 0:00:08]} 72. Ra6+ {[%clk 0:00:02.6]} 72...
Kb4 {[%clk 0:00:07.8]} 73. Rb6+ {[%clk 0:00:03.1]} 73... Ka5 {[%clk 0:00:07.8]}
74. Rxg6 {[%clk 0:00:02]} 74... c1=Q {[%clk 0:00:07]} 75. Rg5 {[%clk 0:00:02.9]}
75... Qc2+ {[%clk 0:00:07.2]} 76. Ke1 {[%clk 0:00:02.9]} 76... Qe4+ {[%clk
0:00:07.2]} 77. Kf1 {[%clk 0:00:03.3]} 77... Qf3+ {[%clk 0:00:07.2]} 78. Ke1
{[%clk 0:00:03.5]} 78... Rc1+ {[%clk 0:00:07.2]} 79. Kd2 {[%clk 0:00:04.4]}
79... Qd1+ {[%clk 0:00:07.1]} 80. Ke3 {[%clk 0:00:04.6]} 80... Rc3+ {[%clk
0:00:07.1]} 81. Kf2 {[%clk 0:00:05.1]} 81... Qf3+ {[%clk 0:00:07.2]} 82. Ke1
{[%clk 0:00:05.5]} 82... Rd3 {[%clk 0:00:06.8]} 83. Rxf5+ {[%clk 0:00:05.2]}
83... Kb4 {[%clk 0:00:06.6]} 84. Rd5 {[%clk 0:00:04.4]} 84... Rxd5 {[%clk
0:00:06.2]} 0-1